fUSD/lending_fUSD_20260614
["ID","MTS","AMOUNT","RATE_DAILY","PERIOD"]
[425009739,1781412651000,-896.92,0.00027671,8]
[425009737,1781412651000,-500.0,0.00027671,8]
[425009736,1781412651000,-1597.46,0.00027671,8]
[425009741,1781412651000,-500.0,0.00027671,8]
[425009740,1781412651000,-500.0,0.00027671,8]
[425009742,1781412651000,-500.0,0.00027671,8]
[425009744,1781412651000,-774.14,0.00027671,8]
[425009743,1781412651000,-859.8,0.00027671,8]
[425009693,1781412651000,-500.0,0.00027671,8]
[425009715,1781412651000,-581.94273038,0.00027671,8]
[425009714,1781412651000,-500.0,0.00027671,8]
[425009745,1781412651000,-500.0,0.00027671,8]
[425009719,1781412651000,-500.0,0.00027671,8]
[425009746,1781412651000,-500.0,0.00027671,8]
[425009712,1781412651000,-500.0,0.00027671,8]
[425009686,1781412651000,-500.0,0.00027671,8]
[425009687,1781412651000,-500.0,0.00027671,8]
[425009689,1781412651000,-500.0,0.00027671,8]
[425009696,1781412651000,-500.0,0.00027671,8]
[425009685,1781412651000,-500.0,0.00027671,8]
[425009691,1781412651000,-500.0,0.00027671,8]
[425009692,1781412651000,-500.0,0.00027671,8]
[425009698,1781412651000,-237.27442471,0.00027671,8]
[425009709,1781412651000,-537.56,0.00027671,8]
[425009708,1781412651000,-500.0,0.00027671,8]
[425009710,1781412651000,-500.0,0.00027671,8]
[425009690,1781412651000,-500.0,0.00027671,8]
[425009699,1781412651000,-961.38,0.00027671,8]
[425009697,1781412651000,-779.21,0.00027671,8]
[425009716,1781412651000,-811.39,0.00027671,8]
[425009713,1781412651000,-523.52,0.00027671,8]
[425009711,1781412651000,-1289.85,0.00027671,8]
[425009705,1781412651000,-500.0,0.00027671,8]
[425009703,1781412651000,-500.0,0.00027671,8]
[425009701,1781412651000,-500.0,0.00027671,8]
[425009704,1781412651000,-550.49802569,0.00027671,8]
[425009707,1781412651000,-500.0,0.00027671,8]
[425009706,1781412651000,-556.76,0.00027671,8]
[425009700,1781412651000,-521.9,0.00027671,8]
[425009702,1781412651000,-601.94,0.00027671,8]
[425009723,1781412651000,-806.3,0.00027671,8]
[425009781,1781412652000,-500.0,0.00027671,8]
[425009785,1781412652000,-500.0,0.00027671,8]
[425009786,1781412652000,-1250.94,0.00027671,8]
[425009784,1781412652000,-500.0,0.00027671,8]
[425009780,1781412652000,-222.74019446,0.00027671,8]
[425009777,1781412652000,-1088.42,0.00027671,8]
[425009779,1781412652000,-500.0,0.00027671,8]
[425009778,1781412652000,-500.0,0.00027671,8]
[425009775,1781412652000,-1348.17,0.00027671,8]
[425009782,1781412652000,-500.0,0.00027671,8]
[425009787,1781412652000,-1952.73,0.00027671,8]
[425009793,1781412652000,-787.09,0.00027671,8]
[425009795,1781412652000,-531.01,0.00027671,7]
[425009794,1781412652000,-500.0,0.00027671,8]
[425009789,1781412652000,-978.97,0.00027671,7]
[425009791,1781412652000,-500.0,0.00027671,8]
[425009790,1781412652000,-500.0,0.00027671,8]
[425009792,1781412652000,-500.0,0.00027671,8]
[425009805,1781412652000,-500.0,0.00027671,8]
[425009796,1781412652000,-1008.86,0.00027671,8]
[425009806,1781412652000,-500.0,0.00027671,8]
[425009808,1781412652000,-500.0,0.00027671,8]
[425009803,1781412652000,-500.0,0.00027671,8]
[425009776,1781412652000,-500.0,0.00027671,8]
[425009799,1781412652000,-500.0,0.00027671,8]
[425009788,1781412652000,-1020.0,0.00027671,8]
[425009774,1781412652000,-500.0,0.00027671,8]
[425009762,1781412652000,-500.0,0.00027671,8]
[425009772,1781412652000,-500.0,0.00027671,8]
[425009800,1781412652000,-2280.24,0.00027671,8]
[425009748,1781412652000,-664.77,0.00027671,8]
[425009747,1781412652000,-919.22,0.00027671,8]
[425009758,1781412652000,-1745.46,0.00027671,8]
[425009749,1781412652000,-500.0,0.00027671,8]
[425009751,1781412652000,-354.38475167,0.00027671,8]
[425009753,1781412652000,-500.0,0.00027671,8]
[425009750,1781412652000,-679.47,0.00027671,8]
[425009754,1781412652000,-564.22,0.00027671,8]
[425009757,1781412652000,-671.22,0.00027671,8]
[425009756,1781412652000,-500.0,0.00027671,8]
[425009752,1781412652000,-500.0,0.00027671,8]
[425009755,1781412652000,-500.0,0.00027671,8]
[425009761,1781412652000,-575.17,0.00027671,8]
[425009759,1781412652000,-629.17,0.00027671,8]
[425009763,1781412652000,-500.0,0.00027671,8]
[425009764,1781412652000,-552.31,0.00027671,8]
[425009771,1781412652000,-614.66,0.00027671,8]
[425009770,1781412652000,-515.11,0.00027671,8]
[425009766,1781412652000,-707.44,0.00027671,8]
[425009767,1781412652000,-500.0,0.00027671,8]
[425009765,1781412652000,-890.71,0.00027671,8]
[425009768,1781412652000,-500.0,0.00027671,8]
[425009769,1781412652000,-500.0,0.00027671,8]
[425009773,1781412652000,-500.0,0.00027671,8]
[425009783,1781412652000,-500.0,0.00027671,8]
[425009801,1781412652000,-500.0,0.00027671,8]
[425009760,1781412652000,-523.18348948,0.00027671,8]
[425009802,1781412652000,-775.9,0.00027671,8]
[425009839,1781412652000,-500.0,0.00027671,8]
[425009832,1781412652000,-500.0,0.00027671,8]
[425009840,1781412652000,-556.64,0.00027671,8]
[425009835,1781412652000,-500.0,0.00027671,8]
[425009837,1781412652000,-897.18,0.00027671,8]
[425009843,1781412652000,-506.73346814,0.00027671,8]
[425009841,1781412652000,-500.0,0.00027671,8]
[425009847,1781412652000,-500.0,0.00027671,8]
[425009842,1781412652000,-692.5,0.00027671,8]
[425009844,1781412652000,-895.56,0.00027671,8]
[425009845,1781412652000,-581.3144079,0.00027671,8]
[425009848,1781412652000,-500.0,0.00027671,8]
[425009838,1781412652000,-500.0,0.00027671,8]
[425009849,1781412652000,-500.0,0.00027671,8]
[425009851,1781412652000,-578.0,0.00027671,8]
[425009846,1781412652000,-500.0,0.00027671,8]
[425009853,1781412652000,-537.41,0.00027671,8]
[425009852,1781412652000,-500.0,0.00027671,8]
[425009854,1781412652000,-500.0,0.00027671,8]
[425009856,1781412652000,-500.0,0.00027671,8]
[425009857,1781412652000,-569.66,0.00027671,8]
[425009855,1781412652000,-1251.89,0.00027671,8]
[425009860,1781412652000,-500.0,0.00027671,8]
[425009858,1781412652000,-500.0,0.00027671,8]
[425009861,1781412652000,-500.0,0.00027671,8]
[425009807,1781412652000,-233.30181134,0.00027671,8]
[425009850,1781412652000,-638.36,0.00027671,8]
[425009833,1781412652000,-569.74,0.00027671,8]
[425009859,1781412652000,-500.0,0.00027671,8]
[425009834,1781412652000,-500.0,0.00027671,8]
[425009836,1781412652000,-1678.62,0.00027671,8]
[425009798,1781412652000,-500.0,0.00027671,8]
[425009797,1781412652000,-500.0,0.00027671,8]
[425009804,1781412652000,-636.14348751,0.00027671,8]
[425009810,1781412652000,-2290.01,0.00027671,8]
[425009811,1781412652000,-500.0,0.00027671,8]
[425009815,1781412652000,-517.72,0.00027671,8]
[425009814,1781412652000,-500.0,0.00027671,8]
[425009812,1781412652000,-525.21,0.00027671,8]
[425009816,1781412652000,-926.35,0.00027671,8]
[425009819,1781412652000,-500.0,0.00027671,8]
[425009813,1781412652000,-1928.24,0.00027671,8]
[425009818,1781412652000,-500.0,0.00027671,8]
[425009809,1781412652000,-500.0,0.00027671,8]
[425009820,1781412652000,-500.0,0.00027671,8]
[425009827,1781412652000,-554.77,0.00027671,8]
[425009817,1781412652000,-500.0,0.00027671,8]
[425009829,1781412652000,-500.0,0.00027671,8]
[425009826,1781412652000,-500.0,0.00027671,8]
[425009830,1781412652000,-500.0,0.00027671,8]
[425009828,1781412652000,-500.0,0.00027671,8]
[425009824,1781412652000,-977.24,0.00027671,8]
[425009823,1781412652000,-1220.26,0.00027671,8]
[425009821,1781412652000,-726.26,0.00027671,8]
[425009822,1781412652000,-500.0,0.00027671,8]
[425009825,1781412652000,-500.0,0.00027671,8]
[425009831,1781412652000,-1356.84,0.00027671,8]
[425009889,1781412653000,-500.0,0.00027671,8]
[425009888,1781412653000,-500.0,0.00027671,8]
[425009898,1781412653000,-500.0,0.00027671,8]
[425009887,1781412653000,-500.0,0.00027671,8]
[425009890,1781412653000,-500.0,0.00027671,8]
[425009894,1781412653000,-500.0,0.00027671,8]
[425009893,1781412653000,-602.41,0.00027671,8]
[425009896,1781412653000,-2334.31,0.00027671,8]
[425009895,1781412653000,-500.0,0.00027671,8]
[425009892,1781412653000,-1370.23,0.00027671,8]
[425009907,1781412653000,-500.0,0.00027671,8]
[425009909,1781412653000,-500.0,0.00027671,8]
[425009908,1781412653000,-1648.44,0.00027671,8]
[425009903,1781412653000,-500.0,0.00027671,8]
[425009902,1781412653000,-500.0,0.00027671,8]
[425009899,1781412653000,-542.64108367,0.00027671,8]
[425009906,1781412653000,-500.0,0.00027671,8]
[425009900,1781412653000,-503.63,0.00027671,8]
[425009891,1781412653000,-400.73529863,0.00027671,8]
[425009905,1781412653000,-638.12066126,0.00027671,8]
[425009897,1781412653000,-500.0,0.00027671,8]
[425009886,1781412653000,-518.31,0.00027671,8]
[425009871,1781412653000,-500.0,0.00027671,8]
[425009881,1781412653000,-1951.53,0.00027671,8]
[425009901,1781412653000,-568.61,0.00027671,8]
[425009862,1781412653000,-1212.61,0.00027671,8]
[425009863,1781412653000,-540.71,0.00027671,8]
[425009866,1781412653000,-500.0,0.00027671,8]
[425009869,1781412653000,-500.0,0.00027671,8]
[425009865,1781412653000,-582.36,0.00027671,8]
[425009864,1781412653000,-500.0,0.00027671,8]
[425009867,1781412653000,-1560.74,0.00027671,8]
[425009872,1781412653000,-538.92,0.00027671,8]
[425009870,1781412653000,-1084.4,0.00027671,8]
[425009885,1781412653000,-500.0,0.00027671,8]
[425009868,1781412653000,-500.0,0.00027671,8]
[425009884,1781412653000,-1025.91,0.00027671,8]
[425009875,1781412653000,-500.0,0.00027671,8]
[425009874,1781412653000,-500.0,0.00027671,8]
[425009876,1781412653000,-506.23,0.00027671,8]
[425009878,1781412653000,-678.56,0.00027671,8]
[425009877,1781412653000,-869.79,0.00027671,8]
[425009879,1781412653000,-500.0,0.00027671,8]
[425009880,1781412653000,-500.0,0.00027671,8]
[425009883,1781412653000,-874.3,0.00027671,8]
[425009882,1781412653000,-500.0,0.00027671,8]
[425009873,1781412653000,-2765.89,0.00027671,8]
[425009904,1781412653000,-500.0,0.00027671,8]
[425009914,1781412653000,-987.93,0.00027671,8]
[425009912,1781412653000,-1811.24,0.00027671,8]
[425009936,1781412653000,-1588.13,0.00027671,8]
[425009942,1781412653000,-500.0,0.00027671,8]
[425009938,1781412653000,-500.0,0.00027671,8]
[425009939,1781412653000,-912.53,0.00027671,8]
[425009941,1781412653000,-598.75,0.00027671,8]
[425009954,1781412653000,-2216.26,0.00027671,8]
[425009944,1781412653000,-516.72216188,0.00027671,8]
[425009955,1781412653000,-560.4,0.00027671,8]
[425009943,1781412653000,-570.94,0.00027671,8]
[425009945,1781412653000,-500.0,0.00027671,8]
[425009947,1781412653000,-500.0,0.00027671,8]
[425009952,1781412653000,-1919.91,0.00027671,8]
[425009951,1781412653000,-500.0,0.00027671,8]
[425009950,1781412653000,-741.68,0.00027671,8]
[425009949,1781412653000,-500.0,0.00027671,8]
[425009948,1781412653000,-636.28,0.00027671,8]
[425009910,1781412653000,-577.06,0.00027671,8]
[425009953,1781412653000,-500.0,0.00027671,8]
[425009956,1781412653000,-500.0,0.00027671,8]
[425009958,1781412653000,-995.65,0.00027671,8]
[425009957,1781412653000,-500.0,0.00027671,8]
[425009933,1781412653000,-634.38,0.00027671,8]
[425009935,1781412653000,-500.0,0.00027671,8]
[425009946,1781412653000,-787.18,0.00027671,8]
[425009940,1781412653000,-500.0,0.00027671,8]
[425009937,1781412653000,-552.94,0.00027671,8]
[425009913,1781412653000,-1003.12,0.00027671,8]
[425009915,1781412653000,-1099.49,0.00027671,8]
[425009911,1781412653000,-500.0,0.00027671,8]
[425009919,1781412653000,-500.0,0.00027671,8]
[425009920,1781412653000,-500.0,0.00027671,3]
[425009921,1781412653000,-654.37,0.00027671,8]
[425009917,1781412653000,-500.0,0.00027671,8]
[425009916,1781412653000,-531.55,0.00027671,8]
[425009923,1781412653000,-500.0,0.00027671,8]
[425009918,1781412653000,-1200.46,0.00027671,8]
[425009924,1781412653000,-500.0,0.00027671,8]
[425009922,1781412653000,-500.0,0.00027671,8]
[425009932,1781412653000,-500.0,0.00027671,8]
[425009929,1781412653000,-500.0,0.00027671,8]
[425009928,1781412653000,-912.82,0.00027671,8]
[425009930,1781412653000,-774.71,0.00027671,8]
[425009926,1781412653000,-522.95,0.00027671,8]
[425009931,1781412653000,-1189.81,0.00027671,8]
[425009925,1781412653000,-500.0,0.00027671,8]
[425009927,1781412653000,-777.97,0.00027671,8]
[425009934,1781412653000,-500.0,0.00027671,8]
[425009979,1781412654000,-1023.56,0.00027671,8]
[425009985,1781412654000,-500.0,0.00027671,8]
[425009981,1781412654000,-500.0,0.00027671,8]
[425009980,1781412654000,-500.0,0.00027671,8]
[425009982,1781412654000,-500.0,0.00027671,8]
[425009986,1781412654000,-500.0,0.00027671,8]
[425009983,1781412654000,-793.99,0.00027671,8]
[425009994,1781412654000,-500.0,0.00027671,8]
[425009988,1781412654000,-500.0,0.00027671,8]
[425009987,1781412654000,-500.0,0.00027671,8]
[425009989,1781412654000,-500.0,0.00027671,8]
[425009991,1781412654000,-722.31,0.00027671,8]
[425009993,1781412654000,-500.0,0.00027671,8]
[425009990,1781412654000,-500.0,0.00027671,8]
[425009978,1781412654000,-1341.19,0.00027671,8]
[425009984,1781412654000,-500.0,0.00027671,8]
[425009976,1781412654000,-500.0,0.00027671,8]
[425009965,1781412654000,-830.68,0.00027671,8]
[425009974,1781412654000,-500.0,0.00027671,8]
[425009992,1781412654000,-781.07,0.00027671,8]
[425009959,1781412654000,-500.0,0.00027671,8]
[425009960,1781412654000,-500.0,0.00027671,8]
[425009961,1781412654000,-500.0,0.00027671,8]
[425009962,1781412654000,-605.94,0.00027671,8]
[425009967,1781412654000,-500.0,0.00027671,8]
[425009963,1781412654000,-500.0,0.00027671,8]
[425009977,1781412654000,-500.0,0.00027671,8]
[425009968,1781412654000,-500.0,0.00027671,8]
[425009964,1781412654000,-616.13316932,0.00027671,8]
[425009970,1781412654000,-735.69,0.00027671,8]
[425009969,1781412654000,-1100.07,0.00027671,8]
[425009971,1781412654000,-846.65,0.00027671,8]
[425009972,1781412654000,-697.82,0.00027671,8]
[425009973,1781412654000,-2873.83,0.00027671,8]
[425009975,1781412654000,-500.0,0.00027671,8]
[425009966,1781412654000,-500.0,0.00027671,8]
[425009997,1781412654000,-500.0,0.00027671,8]
[425010004,1781412654000,-831.75,0.00027671,8]
[425009996,1781412654000,-500.0,0.00027671,8]
[425010019,1781412654000,-1659.48,0.00027671,8]
[425010018,1781412654000,-500.0,0.00027671,8]
[425010020,1781412654000,-500.0,0.00027671,8]
[425010021,1781412654000,-500.0,0.00027671,8]
[425010024,1781412654000,-1675.91,0.00027671,8]
[425010023,1781412654000,-500.0,0.00027671,8]
[425010022,1781412654000,-2115.09,0.00027671,8]
[425010026,1781412654000,-500.0,0.00027671,8]
[425010027,1781412654000,-585.03,0.00027671,8]
[425010025,1781412654000,-158.40920122,0.00027671,8]
[425010028,1781412654000,-500.0,0.00027671,8]
[425010029,1781412654000,-1198.28,0.00027671,8]
[425010031,1781412654000,-1673.77,0.00027671,8]
[425010032,1781412654000,-500.0,0.00027671,8]
[425009995,1781412654000,-500.0,0.00027671,8]
[425010015,1781412654000,-500.0,0.00027671,8]
[425010016,1781412654000,-500.0,0.00027671,8]
[425010030,1781412654000,-500.0,0.00027671,8]
[425010013,1781412654000,-500.0,0.00027671,8]
[425009998,1781412654000,-1123.95,0.00027671,8]
[425009999,1781412654000,-500.0,0.00027671,8]
[425010001,1781412654000,-643.88359108,0.00027671,8]
[425010002,1781412654000,-1784.22,0.00027671,8]
[425010000,1781412654000,-1912.54,0.00027671,8]
[425010005,1781412654000,-500.0,0.00027671,8]
[425010033,1781412654000,-500.0,0.00027671,8]
[425010003,1781412654000,-500.0,0.00027671,8]
[425010009,1781412654000,-583.27,0.00027671,8]
[425010007,1781412654000,-557.26,0.00027671,8]
[425010014,1781412654000,-500.0,0.00027671,8]
[425010012,1781412654000,-545.5,0.00027671,8]
[425010010,1781412654000,-500.0,0.00027671,8]
[425010017,1781412654000,-384.54746791,0.00027671,8]
[425010011,1781412654000,-500.0,0.00027671,8]
[425010008,1781412654000,-784.08,0.00027671,8]
[425010006,1781412654000,-532.89,0.00027671,8]
[425010034,1781412655000,-589.15,0.00027671,8]
[425010036,1781412655000,-1289.21,0.00027671,8]
[425010037,1781412655000,-500.0,0.00027671,8]
[425010038,1781412655000,-1080.75,0.00027671,8]
[425010043,1781412655000,-500.0,0.00027671,8]
[425010041,1781412655000,-500.0,0.00027671,8]
[425010039,1781412655000,-500.0,0.00027671,8]
[425010042,1781412655000,-913.06,0.00027671,8]
[425010035,1781412655000,-1059.93,0.00027671,8]
[425010040,1781412655000,-500.0,0.00027671,8]
[425010045,1781412655000,-845.71,0.00027671,8]
[425010046,1781412655000,-500.0,0.00027671,8]
[425010049,1781412655000,-500.0,0.00027671,8]
[425010048,1781412655000,-691.93,0.00027671,8]
[425010051,1781412655000,-681.29,0.00027671,8]
[425010050,1781412655000,-1471.09,0.00027671,8]
[425010047,1781412655000,-645.65,0.00027671,8]
[425010052,1781412655000,-192.84847544,0.00027671,8]
[425010044,1781412655000,-500.0,0.00027671,8]
[425010064,1781412656000,-500.0,0.00027671,8]
[425010066,1781412656000,-1015.69,0.00027671,8]
[425010065,1781412656000,-500.0,0.00027671,8]
[425010061,1781412656000,-2587.9,0.00027671,8]
[425010062,1781412656000,-1073.91,0.00027671,8]
[425010060,1781412656000,-500.0,0.00027671,8]
[425010059,1781412656000,-576.71886304,0.00027671,8]
[425010056,1781412656000,-500.0,0.00027671,8]
[425010063,1781412656000,-500.0,0.00027671,8]
[425010058,1781412656000,-516.16,0.00027671,8]
[425010054,1781412656000,-500.0,0.00027671,8]
[425010055,1781412656000,-559.98,0.00027671,8]
[425010053,1781412656000,-192.23222761,0.00027671,8]
[425010067,1781412656000,-500.0,0.00027671,8]
[425010057,1781412656000,-500.0,0.00027671,8]
[425010068,1781412656000,-1615.21,0.00027671,8]
[425010082,1781412656000,-1087.19,0.00027671,8]
[425010071,1781412656000,-614.1,0.00027671,8]
[425010069,1781412656000,-500.0,0.00027671,8]
[425010086,1781412656000,-1039.97,0.00027671,8]
[425010083,1781412656000,-500.0,0.00027671,8]
[425010084,1781412656000,-583.88,0.00027671,8]
[425010081,1781412656000,-600.36,0.00027671,8]
[425010079,1781412656000,-617.31,0.00027671,8]
[425010080,1781412656000,-500.0,0.00027671,8]
[425010085,1781412656000,-500.0,0.00027671,8]
[425010076,1781412656000,-500.0,0.00027671,8]
[425010077,1781412656000,-500.0,0.00027671,8]
[425010075,1781412656000,-528.66,0.00027671,8]
[425010074,1781412656000,-500.0,0.00027671,8]
[425010070,1781412656000,-500.0,0.00027671,8]
[425010072,1781412656000,-500.0,0.00027671,8]
[425010078,1781412656000,-500.0,0.00027671,8]
[425010073,1781412656000,-500.0,0.00027671,8]
[425010103,1781412657000,-500.0,0.00027671,8]
[425010108,1781412657000,-500.0,0.00027671,8]
[425010106,1781412657000,-922.40748432,0.00027671,8]
[425010107,1781412657000,-500.0,0.00027671,8]
[425010110,1781412657000,-1422.21,0.00027671,8]
[425010109,1781412657000,-500.0,0.00027671,8]
[425010111,1781412657000,-264.53992586,0.00027671,8]
[425010116,1781412657000,-298.93704269,0.00027671,8]
[425010112,1781412657000,-235.46007414,0.00027671,8]
[425010114,1781412657000,-6.16560963,0.00027671,8]
[425010113,1781412657000,-1427.35,0.00027671,8]
[425010118,1781412657000,-500.0,0.00027671,8]
[425010105,1781412657000,-141.80251568,0.00027671,8]
[425010119,1781412657000,-500.0,0.00027671,8]
[425010115,1781412657000,-493.83439037,0.00027671,8]
[425010104,1781412657000,-842.87,0.00027671,8]
[425010096,1781412657000,-1755.57,0.00027671,8]
[425010100,1781412657000,-500.0,0.00027671,8]
[425010126,1781412657000,-500.0,0.00027671,8]
[425010087,1781412657000,-2777.35,0.00027671,8]
[425010089,1781412657000,-909.15,0.00027671,8]
[425010088,1781412657000,-500.0,0.00027671,8]
[425010090,1781412657000,-701.07,0.00027671,8]
[425010092,1781412657000,-190.80821791,0.00027671,8]
[425010101,1781412657000,-500.0,0.00027671,8]
[425010091,1781412657000,-620.51,0.00027671,8]
[425010095,1781412657000,-437.46982405,0.00027671,8]
[425010099,1781412657000,-253.46307958,0.00027671,8]
[425010098,1781412657000,-500.0,0.00027671,8]
[425010097,1781412657000,-558.03,0.00027671,8]
[425010094,1781412657000,-124.14017595,0.00027671,8]
[425010102,1781412657000,-2111.57,0.00027671,8]
[425010093,1781412657000,-326.39178209,0.00027671,8]
[425010122,1781412657000,-702.92,0.00027671,8]
[425010140,1781412657000,-1889.86,0.00027671,8]
[425010123,1781412657000,-572.98231212,0.00027671,8]
[425010142,1781412657000,-213.69,0.00024658,2]
[425010145,1781412657000,-1939.87184674,0.00027297,2]
[425010144,1781412657000,-102.88219211,0.00026617,2]
[425010147,1781412657000,-1873.28744579,0.00027571,2]
[425010149,1781412657000,-904.98230912,0.00027671,8]
[425010146,1781412657000,-800.41,0.00027397,10]
[425010143,1781412657000,-316.11780789,0.00026617,2]
[425010151,1781412657000,-500.0,0.00027671,8]
[425010152,1781412657000,-749.09,0.00027671,8]
[425010153,1781412657000,-500.0,0.00027671,8]
[425010155,1781412657000,-500.0,0.00027671,8]
[425010156,1781412657000,-500.0,0.00027671,8]
[425010154,1781412657000,-500.0,0.00027671,8]
[425010117,1781412657000,-244.03295731,0.00027671,8]
[425010150,1781412657000,-541.98,0.00027671,8]
[425010139,1781412657000,-1929.81,0.00027671,8]
[425010148,1781412657000,-546.0,0.00027598,10]
[425010127,1781412657000,-500.0,0.00027671,8]
[425010121,1781412657000,-500.0,0.00027671,8]
[425010125,1781412657000,-500.0,0.00027671,8]
[425010124,1781412657000,-779.47,0.00027671,8]
[425010120,1781412657000,-500.0,0.00027671,8]
[425010128,1781412657000,-500.0,0.00027671,8]
[425010132,1781412657000,-500.0,0.00027671,8]
[425010131,1781412657000,-500.0,0.00027671,8]
[425010129,1781412657000,-500.0,0.00027671,8]
[425010135,1781412657000,-500.0,0.00027671,8]
[425010133,1781412657000,-500.0,0.00027671,8]
[425010134,1781412657000,-500.0,0.00027671,8]
[425010137,1781412657000,-1516.11,0.00027671,8]
[425010136,1781412657000,-622.55,0.00027671,8]
[425010138,1781412657000,-500.0,0.00027671,8]
[425010130,1781412657000,-500.0,0.00027671,8]
[425010141,1781412657000,-587.98769088,0.00027671,8]
[425010188,1781412658000,-500.0,0.00027671,8]
[425010194,1781412658000,-500.0,0.00027671,8]
[425010189,1781412658000,-678.81,0.00027671,8]
[425010190,1781412658000,-970.52,0.00027671,8]
[425010203,1781412658000,-500.0,0.00027671,8]
[425010187,1781412658000,-500.0,0.00027671,8]
[425010184,1781412658000,-500.0,0.00027671,8]
[425010192,1781412658000,-500.0,0.00027671,8]
[425010183,1781412658000,-1329.92,0.00027671,8]
[425010186,1781412658000,-500.0,0.00027671,8]
[425010193,1781412658000,-584.87,0.00027671,8]
[425010204,1781412658000,-368.3944194,0.00027671,8]
[425010191,1781412658000,-500.0,0.00027671,8]
[425010198,1781412658000,-560.1658128,0.00027671,8]
[425010195,1781412658000,-510.01,0.00027671,8]
[425010197,1781412658000,-500.0,0.00027671,8]
[425010200,1781412658000,-1112.24,0.00027671,8]
[425010199,1781412658000,-500.0,0.00027671,8]
[425010209,1781412658000,-500.0,0.00027671,8]
[425010202,1781412658000,-1267.91,0.00027671,8]
[425010207,1781412658000,-500.0,0.00027671,8]
[425010179,1781412658000,-1793.44,0.00027671,8]
[425010196,1781412658000,-500.0,0.00027671,8]
[425010181,1781412658000,-500.0,0.00027671,8]
[425010164,1781412658000,-1879.34,0.00027671,8]
[425010182,1781412658000,-500.0,0.00027671,8]
[425010201,1781412658000,-599.38,0.00027671,8]
[425010158,1781412658000,-500.0,0.00027671,8]
[425010159,1781412658000,-500.0,0.00027671,8]
[425010160,1781412658000,-641.45178293,0.00027671,8]
[425010161,1781412658000,-500.0,0.00027671,8]
[425010157,1781412658000,-1063.21,0.00027671,8]
[425010163,1781412658000,-1603.48,0.00027671,8]
[425010162,1781412658000,-500.0,0.00027671,8]
[425010167,1781412658000,-500.0,0.00027671,8]
[425010168,1781412658000,-500.0,0.00027671,8]
[425010169,1781412658000,-500.0,0.00027671,8]
[425010170,1781412658000,-500.0,0.00027671,8]
[425010166,1781412658000,-500.0,0.00027671,8]
[425010165,1781412658000,-813.15,0.00027671,8]
[425010171,1781412658000,-500.0,0.00027671,8]
[425010172,1781412658000,-500.0,0.00027671,8]
[425010173,1781412658000,-730.92,0.00027671,8]
[425010174,1781412658000,-500.0,0.00027671,8]
[425010175,1781412658000,-500.0,0.00027671,8]
[425010177,1781412658000,-179.24703344,0.00027671,8]
[425010176,1781412658000,-2702.99,0.00027671,8]
[425010178,1781412658000,-1057.13,0.00027671,8]
[425010180,1781412658000,-500.0,0.00027671,8]